Cogmind - Beta 16 --- EXPLORER MODE // 2025.12.11 @ 11:06:08 Player: K.K.Y. Result: Destroyed by ZU-KXK(R) with Subdweller Machine Gun Performance ------------- Evolutions (0) 0 Regions Visited (3) 600 Robots Destroyed (33) 165 Value Destroyed (585) 585 Prototype IDs (0) 0 Alien Tech Used (0) 0 Bonus (0) 0 TOTAL SCORE: 1350 Bonus ------- None Cogmind --------- Core Integrity 0/250 Matter 300/300 Energy 96/100 System Corruption 0% Temperature Cool (43) Movement Flying (117) Ox1 Location -10/Subcaves Parts ------- > --- POWER (1) -------- (None) > --- PROPULSION (3) --- Flight Unit Flight Unit > --- UTILITY (2) ------ Small Storage Unit > --- WEAPON (2) ------- Subdweller Laser > --- INVENTORY (8) ---- Improved Heat Sink Structural Scanner Improved Terrain Scanner Recalibrator Peak State ------------ > --- POWER ------------ Light Ion Engine > --- PROPULSION ------- Wheel Wheel Flight Unit > --- UTILITY ---------- Weight Redist. System Structural Scanner > --- WEAPON ----------- Small Laser Small Laser > --- INVENTORY -------- Improved Heat Sink Small Storage Unit Improved Terrain Scanner Recalibrator Mining Laser [Rating: 10] Favorites ----------- Power Light Ion Engine Engine Light Ion Engine Propulsion Wheel Wheel Wheel Flight Unit Flight Unit Utility Targeting Computer Device Structural Scanner Storage Small Storage Unit Processor Targeting Computer Weapon Small Laser Energy Gun Small Laser Ballistic Gun Light Assault Rifle Special Weapon Mining Laser Build | -11 -10 -10 -10 ------- Run | Yrd Mat Min Sub Slots Evolved 1 | . 1 . . Power . | . . . . Propulsion 1 | . 1 . . Utility . | . . . . Weapon . | . . . . Parts Attached 20 | 7 5 6 2 Power 2 | 1 . 1 . Engine 2 | 1 . 1 . Core . | . . . . Reactor . | . . . . Propulsion 8 | 2 3 3 . Treads . | . . . . Leg . | . . . . Wheel 4 | 2 2 . . Hover . | . . . . Flight 4 | . 1 3 . Utility 5 | 2 2 1 . Device 2 | . 2 . . Storage 1 | . . 1 . Processor 2 | 2 . . . Hackware . | . . . . Protection . | . . . . Artifact . | . . . . Weapon 5 | 2 . 1 2 Energy Gun 3 | 2 . . 1 Energy Cannon . | . . . . Ballistic Gun 1 | . . 1 . Ballistic Cannon . | . . . . Launcher . | . . . . Special Weapon 1 | . . . 1 Impact Weapon . | . . . . Slashing Weapon . | . . . . Piercing Weapon . | . . . . Special Melee Weapon . | . . . . Unidentified Prototypes . | . . . . Parts Lost 8 | . . 2 6 Power 2 | . . 1 1 Propulsion 2 | . . 1 1 Utility 1 | . . . 1 Weapon 3 | . . . 3 Highest Loss Streak 6 | . . 2 6 To Critical Strikes . | . . . . Average Backups 4 | 2 4 5 4 Power . | . . . . Propulsion . | . . . . Utility 3 | 1 3 4 4 Weapon . | . 1 1 . Tool/Special . | . . . . Unused Backups 4 | 1 . . 3 Power . | . . . . Propulsion 1 | 1 . . . Utility 3 | . . . 3 Weapon . | . . . . Tool/Special . | . . . . Average Slot Usage (%) 96 | . 99 90 93 Engine 11 | . 12 11 12 Wheel 19 | . 27 7 . Flight 14 | . 9 20 35 Device 10 | . 4 22 11 Storage 1 | . . 1 12 Processor 12 | . 20 . . Energy Gun 22 | . 25 22 8 Ballistic Gun 1 | . . 2 8 Peak Build Rating 10 | 7 10 10 10 Average Rating 8 | 5 8 9 9 On Entrance 6 | . 7 10 10 Avg Prop Armor Cover (%) 3 | . 3 3 . Naked Turns . | . . . . Heaviest Build 10 | 5 6 10 10 Greatest Support 30 | 20 30 26 12 Greatest Overweight (x) 1 | . 1 . 1 Average Overweight (x) . | . . . . Largest Inventory Capacity 8 | 5 5 8 8 Average Capacity 5 | 5 5 5 8 Most Carried 5 | 5 5 5 5 Average Carried 4 | 2 4 5 4 Final Capacity 8 | 5 5 8 8 Final Carried 5 | 4 5 5 4 Class Distribution -------------------- 89% | Hacker-Mutant 10% | Scavenger-Mutant Dominant Class ---------------- Hacker-Mutant | -10/Materials Hacker-Mutant | -10/Mines Scavenger-Mutant | -10/Subcaves Resources | -11 -10 -10 -10 ----------- Run | Yrd Mat Min Sub Matter Collected 410 | 270 40 80 20 Remotely . | . . . . Salvage Created 1022 | 249 561 186 26 Parts 85 | 24 36 22 3 Haulers Intercepted 2 | . 2 . . Recyclers Shooed 2 | . 2 . . Parts Field Recycled . | . . . . Retrieved Matter . | . . . . Parts Self-Destructed . | . . . . Prevented . | . . . . Parts Restored . | . . . . Kills | -11 -10 -10 -10 ------- Run | Yrd Mat Min Sub Combat Hostiles Destroyed 15 | . 7 6 2 Guns 14 | . 7 6 1 Cannons 1 | . . . 1 Classes Destroyed 10 | 3 5 1 1 Worker 3 | 2 1 . . Builder 2 | . 1 1 . Tunneler 7 | 6 . 1 . Hauler 2 | . 2 . . Recycler 2 | 1 1 . . Mechanic 1 | . 1 . . Watcher 1 | . 1 . . Swarmer 4 | . . 4 . Grunt 9 | . 7 2 . Subdweller 2 | . . . 2 Best Kill Streak 5 | 5 5 2 1 Combat Bots Only 4 | . 4 2 1 Max Kills in Single Turn 1 | 1 1 1 1 Gunslinging . | . . . . Exploded . | . . . . Melee . | . . . . Uniques/NPCs Destroyed . | . . . . Combat | -11 -10 -10 -10 -------- Run | Yrd Mat Min Sub Hostile Shots Fired 108 | . 38 23 47 Missed 24 | . 7 5 12 Hits 84 | . 31 18 35 Projectile 84 | . 31 18 35 Critical Strikes 3 | . 1 . 2 Damage Taken 915 | . 276 110 529 Core 258 | . 65 47 146 Absorbed by Shields . | . . . . Ignored by Resistances 552 | . 169 74 309 Core Remaining (%) 100 | 100 . . . Volleys Fired 108 | 13 66 14 15 Largest 2 | 2 2 2 2 Hottest 140 | 80 80 80 140 Shots Fired 177 | 26 101 28 22 Gun 171 | 26 101 28 16 Cannon . | . . . . Launcher . | . . . . Special 6 | . . . 6 Kinetic 5 | . . . 5 Thermal 172 | 26 101 28 17 Explosive . | . . . . Electromagnetic . | . . . . Robot Hit Streak 72 | 20 72 11 18 Robot Miss Streak 1 | . 1 1 1 Penetration Max . | . . . . Secondary Targets 3 | . 1 2 . Max Gunslinging Chain 1 | . 1 1 . Shots Hit Robots 155 | 20 97 22 16 Core Hits 59 | 10 33 11 5 Critical Kills . | . . . . Critical Parts Destroyed . | . . . . Critical Strikes . | . . . . Melee Attacks . | . . . . Impact . | . . . . Slashing . | . . . . Piercing . | . . . . Sneak Attacks . | . . . . Combat Hostiles . | . . . . Follow-up Attacks . | . . . . Damage Inflicted 1732 | 219 1060 243 210 Guns 1660 | 219 1060 243 138 Cannons . | . . . . Explosions . | . . . . Melee . | . . . . Ramming . | . . . . Kinetic 16 | . . . 16 Thermal 1716 | 219 1060 243 194 Explosive . | . . . . Electromagnetic . | . . . . Impact . | . . . . Slashing . | . . . . Piercing . | . . . . Highest Corruption . | . . . . Average Corruption . | . . . . Corruption Purged . | . . . . Corruption Blocked . | . . . . Overload Shots . | . . . . Overflow Damage . | . . . . Projectiles . | . . . . Explosions . | . . . . Melee . | . . . . Knockbacks . | . . . . Impact . | . . . . Kinetic . | . . . . Secondary . | . . . . Self-Inflicted Damage . | . . . . Shots . | . . . . Rammed . | . . . . Targets Rammed . | . . . . Kicked . | . . . . Crushed . | . . . . Highest Temperature 316 | 36 316 88 238 Average Temperature 83 | 14 105 39 138 Received Heat Transfer 876 | . 246 69 561 Effects 5 | . 5 . . Energy Bleed 1 | . 1 . . Interference 4 | . 4 . . Siege Activations . | . . . . Martial Activations . | . . . . Shielding Activations . | . . . . Robots Disrupted . | . . . . Combat Hostiles . | . . . . Robots Corrupted . | . . . . Combat Hostiles . | . . . . Parts Fried . | . . . . Impact Corruptions . | . . . . Robots Melted . | . . . . Combat Hostiles . | . . . . Parts Melted 3 | . 3 . . Heat Transferred 3800 | 500 2425 550 325 Parts Sabotaged . | . . . . Parts Stolen . | . . . . Parts Stripped . | . . . . Power Chain Reactions . | . . . . Alert | -11 -10 -10 -10 ------- Run | Yrd Mat Min Sub Maximum Alert Level . | . . . . Low Security (%) 100 | 100 100 100 . Level 1 . | . . . . Level 2 . | . . . . Level 3 . | . . . . Level 4 . | . . . . Level 5 . | . . . . High Security . | . . . . Max Security . | . . . . Peak Influence 60 | 15 60 50 . Initial . | . . . . Average 7 | 2 6 13 . Influence Increases 416 | 45 211 160 . Destroy 0b10 Robot/C 260 | . 140 120 . Destroy 0b10 Robot/NC 90 | 45 35 10 . Destroy Leader 66 | . 36 30 . Influence Decreases 416 | 45 211 160 . Time Decay 416 | 45 211 160 . Squads Dispatched . | . . . . Investigation . | . . . . Extermination . | . . . . Reinforcement . | . . . . Assault . | . . . . Garrison . | . . . . Intercept . | . . . . Searches Triggered . | . . . . Construction Impeded . | . . . . Haulers Reinforced . | . . . . Active Scanning Responses . | . . . . Cargo Convoy Interrupts . | . . . . Stealth | -11 -10 -10 -10 --------- Run | Yrd Mat Min Sub Distress Signals 2 | . 2 . . Communications Jammed . | . . . . Distress Signals . | . . . . Times Spotted 27 | . 17 6 4 Peak Tracking Total 4 | . 4 2 3 Tactical Retreats . | . . . . Traps | -11 -10 -10 -10 ------- Run | Yrd Mat Min Sub Traps Triggered 1 | . 1 . . Indirectly . | . . . . Trap Hack Attempts . | . . . . Triggered . | . . . . Disarmed . | . . . . Reprogrammed . | . . . . Reused . | . . . . Traps Extracted . | . . . . Installed . | . . . . Triggered . | . . . . Machines | -11 -10 -10 -10 ---------- Run | Yrd Mat Min Sub Machines Disabled . | . . . . Max in Single Turn . | . . . . Machines Repaired . | . . . . Machines Dismantled . | . . . . Machines Sabotaged . | . . . . Overloaded Fab Kills . | . . . . Hacking | -11 -10 -10 -10 --------- Run | Yrd Mat Min Sub Machines Accessed . | . . . . Terminals . | . . . . Fabricators . | . . . . Repair Stations . | . . . . Recycling Units . | . . . . Scanalyzers . | . . . . Garrison Access . | . . . . Total Hacks . | . . . . Successful . | . . . . Failed . | . . . . Catastrophic . | . . . . Database Lockouts . | . . . . Manual . | . . . . Terminals . | . . . . Fabricators . | . . . . Repair Stations . | . . . . Recycling Units . | . . . . Scanalyzers . | . . . . Garrison Access . | . . . . Terminal Hacks . | . . . . Fabricator Hacks . | . . . . Repair Station Hacks . | . . . . Recycling Unit Hacks . | . . . . Scanalyzer . | . . . . Garrison Access Hacks . | . . . . Unauthorized Hacks . | . . . . Terminals . | . . . . Fabricators . | . . . . Repair Stations . | . . . . Recycling Units . | . . . . Scanalyzers . | . . . . Garrison Access . | . . . . Data Cores Recovered . | . . . . Used . | . . . . Hacking Detections . | . . . . Full Trace Events . | . . . . Feedback Events . | . . . . Feedback Blocked . | . . . . Robot Schematics Acquired . | . . . . Robots Built . | . . . . Authchips . | . . . . Time . | . . . . Total Robot Build Rating . | . . . . Part Schematics Acquired . | . . . . Parts Built . | . . . . Authchips . | . . . . Time . | . . . . Total Part Build Rating . | . . . . Part Studies Acquired . | . . . . Parts Repaired . | . . . . Time . | . . . . Parts Recycled . | . . . . Recycled Matter . | . . . . Retrieved Matter . | . . . . Retrieved Components . | . . . . Parts Scanalyzed . | . . . . Part Schematics Acquired . | . . . . Parts Damaged . | . . . . Bothacking | -11 -10 -10 -10 ------------ Run | Yrd Mat Min Sub Used RIF Installer . | . . . . Robots Hacked . | . . . . Non-combat . | . . . . Combat . | . . . . Robot Hacks Applied . | . . . . Relay Couplers Released . | . . . . Fabnet Peak Effective % . | . . . . Robots Rewired . | . . . . Allies Hacked . | . . . . Hacks Repelled . | . . . . Allies | -11 -10 -10 -10 -------- Run | Yrd Mat Min Sub Total Allies . | . . . . Largest Group . | . . . . Highest-Rated Group . | . . . . Highest-Rated Ally . | . . . . Total Orders . | . . . . Ally Attacks . | . . . . Total Damage . | . . . . Kills . | . . . . Allies Corrupted . | . . . . Allies Melted . | . . . . Intel | -11 -10 -10 -10 ------- Run | Yrd Mat Min Sub Active Infowar (turns) 560 | . 244 316 . Structural 560 | . 244 316 . Robot Analysis Total . | . . . . Derelict Logs Recovered 1 | . . . 1 Drone Launches . | . . . . Drone Recoveries . | . . . . Exploration | -11 -10 -10 -10 ------------- Run | Yrd Mat Min Sub Turns Passed 1574 | 227 862 376 109 Spaces Moved 1580 | 84 805 571 120 Core 57 | 57 . . . Treads . | . . . . Legs . | . . . . Wheels 1047 | 27 802 218 . Hover . | . . . . Flight 476 | . 3 353 120 Fastest Speed 34 | 50 80 34 34 Average Speed 65 | 59 80 52 36 Slowest Speed 130 | 80 130 80 117 Overloaded Moves . | . . . . Propulsion Burnouts . | . . . . Robots Hopped 4 | . . 4 . Potential Cave-ins . | . . . . Cave-ins Triggered . | . . . . Exploration Rate (%) 51 | 4 97 98 8 Regions Visited 3 Branch Regions 2 Pre-discovered Areas 1 | . . . 1 Known Exits Taken 3 | 1 1 1 . Unknown Exits Taken . | . . . . Scrap Searched 3 | . . . 3 Spaces Dug . | . . . . Terrain Destroyed . | . . . . Melee . | . . . . Projectile . | . . . . AOE . | . . . . Terrain Rammed . | . . . . Walls Destroyed . | . . . . Machines Disabled . | . . . . Actions | -11 -10 -10 -10 --------- Run | Yrd Mat Min Sub Total 1919 | 235 920 612 152 Wait 193 | 119 39 22 13 Move 1569 | 83 804 562 120 Hop 4 | . . 4 . Pick Up 15 | 12 2 . 1 Fast Attach 7 | . 3 4 . Attach 10 | 7 1 . 2 Detach . | . . . . Swap 5 | . 1 3 1 Drop 8 | 1 4 3 . Fire 108 | 13 66 14 15 Melee . | . . . . Ram . | . . . . Kick . | . . . . Crush . | . . . . Escape Stasis . | . . . . Rewire . | . . . . Trap . | . . . . Miscellaneous . | . . . . Route ------- -11/Scrapyard -10/Materials (discovered 6 exits: *Mat x3 / *Min x2 / *Sub) -10/Mines (discovered 4 exits: *Mat x2 / *Exi / *Sub) -10/Subcaves History --------- Turn | Location | Event 3 | -11/Scrapyard | Identified exit to Materials 3 | -11/Scrapyard | Discovered exit to Materials (range 15) 228 | -11/Scrapyard | Entered Materials 228 | -10/Materials | Evolved 1 slot: Propulsion x1 310 | -10/Materials | Build established: Hacker-Mutant 513 | -10/Materials | Identified exit to Materials 513 | -10/Materials | Discovered exit to Materials (range 13) 513 | -10/Materials | Identified exit to Mines 513 | -10/Materials | Discovered exit to Mines (range 14) 612 | -10/Materials | Discovered exit to Mines (range 16) 695 | -10/Materials | Discovered exit to Materials (range 15) 832 | -10/Materials | Discovered exit to Materials (range 15) 890 | -10/Materials | Identified exit to Subcaves 890 | -10/Materials | Discovered exit to Subcaves (range 5) 1090 | -10/Materials | Entered Mines 1177 | -10/Mines | Discovered exit to Materials (range 9) 1303 | -10/Mines | Discovered exit to Subcaves (range 9) 1352 | -10/Mines | Deemed a non-threat by the Exiles lab entrance 1352 | -10/Mines | Identified exit to Exiles 1352 | -10/Mines | Discovered exit to Exiles (range 5) 1365 | -10/Mines | Found a hidden stash of uninstalled traps 1377 | -10/Mines | Discovered exit to Materials (range 6) 1466 | -10/Mines | Entered Subcaves 1467 | -10/Subcaves | Approached by a straggling Scientist 1473 | -10/Subcaves | Shifting Twisted Machinery released Sub. Monowheel 1497 | -10/Subcaves | Shifting Twisted Machinery released Battle Cannon 1513 | -10/Subcaves | Disturbed a concealed Subdweller 1517 | -10/Subcaves | Core integrity fell below 50% 1549 | -10/Subcaves | Disturbed a concealed Subdweller 1568 | -10/Subcaves | Core integrity fell below 20% 1575 | -10/Subcaves | Destroyed by ZU-KXK(R) with Subdweller Machine Gun Last Messages --------------- 01540_ Found Barrage Gun. 01540_ Found 58 Matter. 01540_ Searching scrap... 01540_ Found Sub. Laser. 01540_ Found 51 Matter. 01542_ EX-JCX(c) destroyed. 01549_ ZU-KXK(R) angrily emerges from the Twisted Machinery. 01550_ Acquired 1 matter. 01551_ Critical hit (Meltdown: +180). 01551_ Mining Laser destroyed. 01552_ Subatomizers dissect the Battle Cannon. 01553_ Flight Unit destroyed. 01555_ Acquired 1 matter. 01557_ Critical hit (Meltdown: +180). 01559_ Acquired Sub. Laser. 01561_ Lgt. Assault Rifle destroyed. 01565_ Weight Redist. System destroyed. 01571_ Lgt. Ion Engine destroyed. 01571_ Z5-YHY(R) destroyed. Map ----- +----------------------------------------------------+ | | | ?????????????????????????????????????????????????? | | ?????????????????????????????????????????????????? | | ?????????????????????????????????????????????????? | | ?????????????????????????????????????????????????? | | ?????????????????????????????????????????????????? | | ?????????????????????????????????????????????????? | | ?????????????????????????????????????????????????? | | ?????????????????????????????????????????????????? | | ?????????????????????????????????????????????????? | | ?????????????????????????????????????????????????? | | ?????????????????????????????????????????????????? | | ?????????????????????????????????????????????????? | | ?????????????????????????????????????????????????? | | ?????????????????????????????????????????????????? | | ?????????????????????????????????????????????????? | | ???????????????????#######???????#???????????????? | | ???????????????????? # #?????? ##??????????????? | | ????????????????????? #?????? ##?????????????? | | ?????????????????????# #????? ##????????????? | | ???????????????????#?# ##### #????????????? | | ?????????????????### # """ #????????????? | | ?????????????????#"" " *##!##""#? #????????????? | | ?????????????? %"" # ;%%R%&]#"###" ##???????????? | | ????????????????""??###]]R&%<#"##"" #???????????? | | ??????????????????????# #@%<*#"## ] ##???????????? | | ??????????????????????# ###<<# " ##??????????? | | ??????????????????????# ####" ##?????????? | | ??????????????????????### ### ##????????? | | ????????????????????????########?# #????????? | | ?????????????????????????????????# #????????? | | ?????????????????????????????????### ##????????? | | ???????????????????????????????????## ##?????????? | | ???????????????????????????????????# #?????????? | | ???????????????????????????????????# ##?????????? | | ???????????????????????????????????# #??????????? | | ??????????????????????????????????### ##?????????? | | ??????????????????????????????????# #?????????? | | ?????????????????????????????????## # #?????????? | | ?????????????????????????????????# ###?????????? | | ?????????????????????????????????## ##???????????? | | ???????????????????????????####### #???????????? | | ??????????????????????????## ### ##???????????? | | ??????######????????????### ### #???????????? | | ?????## ###?????????## ## #???????????? | | ????## ##????????#"" #???????????? | | ????# % ####?????#" #???????????? | | ????### ##????# #???????????? | | ?????## % ###### #???????????? | | ?????# ## # # #???????????? | +----------------------------------------------------+ Best States ------------- Heat Dissipation 25 Energy Generation 10 Energy Capacity 125 Matter Stores 300 Matter Capacity 300 Sight Range 16 Terrain Scan Density 10 Additional Mass Support 6 Resistance: KI 35 Resistance: TH 35 Resistance: EX 35 Resistance: EM 35 Resistance: I 35 Resistance: S 35 Resistance: P 35 Evasion (%) 63 Targeting Accuracy 10 Offensive Hacking 20 Item Schematics ----------------- None Robot Schematics ------------------ None Fabricated ------------ Nothing Repaired ---------- Nothing Studied --------- None Alien Tech Used ----------------- None Achievements -------------- None Challenges ------------ None Game ------ Seed DeflectorBurstNeutralizer Manual? 0 Play Time 00:12:19 Cumulative 189.4 hours Start 2025.12.11 @ 10:55:01 End 2025.12.11 @ 11:06:08 Sessions 1 Manual Loads 0 Difficulty Explorer Special Mode None Game No. 271 Rogue 0 Adventurer 0 Explorer 271 Win Type - Total 0 Types 0/0/0/0/0/0/0/0/0/0 Lore% 71 Gallery% 67 Achievement% 53 Wizard Run 0 Options --------- Layout 1 ASCII 0 Keyboard 0 Movement Mouse Keybinds 0 Fullscreen 1 Font 24/Smallcaps Map View 50x35 Zoom Use 0% Tactical HUD 1 Map Filters NONE Filters NONE Steam 1 RUN: f98f0de2-f5fb-4c6e-83bf-bd41a2e6cfcf